fUST/lending_fUST_20250810
["ID","MTS","AMOUNT","RATE_DAILY","PERIOD"]
[378317911,1754823039398,-460.0,0.00021296,2]
[378317912,1754823039408,-460.0,0.00021296,2]
[378317913,1754823039418,-460.0,0.00021296,2]
[378317914,1754823039427,-460.0,0.00021296,2]
[378317915,1754823039437,-460.0,0.00021296,2]
[378317916,1754823039446,-460.0,0.00021296,2]
[378317917,1754823039455,-460.0,0.00021296,2]
[378317918,1754823039465,-460.0,0.00021296,2]
[378317919,1754823039475,-460.0,0.00021296,2]
[378317920,1754823039485,-460.0,0.00021296,2]
[378317921,1754823039494,-460.0,0.00021296,2]
[378317922,1754823039503,-460.0,0.00021296,2]
[378317923,1754823039513,-460.0,0.00021296,2]
[378317924,1754823039523,-460.0,0.00021296,2]
[378317925,1754823039532,-460.0,0.00021296,2]
[378317926,1754823039541,-151.0,0.00021296,2]
[378317927,1754823039550,-480.77872443,0.00021296,2]
[378317928,1754823039560,-970.74,0.00021296,2]
[378317929,1754823039569,-4237.2,0.00021296,2]
[378317930,1754823039580,-460.0,0.00021296,2]
[378317931,1754823039590,-460.0,0.00021296,2]
[378317932,1754823039599,-460.0,0.00021296,2]
[378317933,1754823039608,-460.0,0.00021296,2]
[378317934,1754823039618,-460.0,0.00021296,2]
[378317935,1754823039628,-484.95,0.00021296,2]
[378317936,1754823039637,-460.0,0.00021296,2]
[378317937,1754823039648,-970.2,0.00021296,2]
[378317938,1754823039658,-460.0,0.00021296,2]
[378317939,1754823039669,-460.0,0.00021296,2]
[378317940,1754823039679,-404.14939444,0.00021296,2]
[378317941,1754823039689,-195.96,0.00021296,2]
[378317942,1754823039699,-460.0,0.00021296,2]
[378317943,1754823039708,-460.0,0.00021296,2]
[378317944,1754823039718,-1504.3,0.00021296,2]
[378317945,1754823039727,-280.11,0.00021296,2]
[378317946,1754823039737,-1597.08,0.00021296,2]
[378317947,1754823039748,-460.0,0.00021296,2]
[378317949,1754823039758,-460.0,0.00021296,2]
[378317951,1754823039768,-784.7,0.00021296,2]
[378317953,1754823039778,-489.39731074,0.00021297,2]
[378317955,1754823039787,-460.0,0.00021297,2]
[378317957,1754823039797,-460.0,0.00021297,2]
[378317959,1754823039806,-460.0,0.00021297,2]
[378317960,1754823039816,-460.0,0.00021297,2]
[378317961,1754823039827,-170.51523,0.00021297,2]
[378317962,1754823039838,-170.51523,0.00021297,2]
[378317963,1754823039848,-460.0,0.00021297,2]
[378317964,1754823039863,-498.19,0.00021297,2]
[378317967,1754823039875,-460.0,0.00021297,2]
[378317968,1754823039884,-460.0,0.00021297,2]
[378317969,1754823039894,-460.0,0.00021297,2]
[378317970,1754823039909,-460.0,0.00021297,2]
[378317971,1754823039920,-460.0,0.00021297,2]
[378317973,1754823039930,-151.0,0.00021297,2]
[378317975,1754823039939,-460.0,0.00021297,2]
[378317976,1754823039949,-460.0,0.00021297,2]
[378317977,1754823039959,-460.0,0.00021297,2]
[378317978,1754823039969,-460.0,0.00021297,2]
[378317979,1754823039979,-467.90189732,0.00021297,2]
[378317980,1754823039988,-407.08911212,0.00021298,2]
[378317981,1754823039997,-460.0,0.00021298,2]
[378317982,1754823040007,-460.0,0.00021298,2]
[378317983,1754823040016,-460.0,0.00021298,2]
[378317984,1754823040026,-460.0,0.00021298,2]
[378317986,1754823040035,-460.0,0.00021298,2]
[378317987,1754823040044,-460.0,0.00021298,2]
[378317988,1754823040054,-460.0,0.00021298,2]
[378317989,1754823040063,-460.0,0.00021298,2]
[378317990,1754823040072,-460.0,0.00021298,2]
[378317991,1754823040084,-259.05,0.00021298,2]
[378317993,1754823040093,-460.0,0.00021298,2]
[378317995,1754823040103,-460.0,0.00021298,2]
[378317996,1754823040113,-460.0,0.00021298,2]
[378317997,1754823040122,-460.0,0.00021298,2]
[378317998,1754823040131,-460.0,0.00021298,2]
[378318000,1754823040141,-460.0,0.00021298,2]
[378318001,1754823040151,-460.0,0.00021298,2]
[378318002,1754823040160,-462.77052789,0.00021298,2]
[378318003,1754823040170,-460.0,0.00021298,2]
[378318004,1754823040179,-460.0,0.00021298,2]
[378318005,1754823040189,-460.0,0.00021298,2]
[378318006,1754823040199,-460.0,0.00021298,2]
[378318007,1754823040210,-460.0,0.00021298,2]
[378318008,1754823040221,-460.0,0.00021298,2]
[378318009,1754823040233,-460.0,0.00021298,2]
[378318010,1754823040244,-460.0,0.00021298,2]
[378318011,1754823040253,-633.63,0.00021298,2]
[378318012,1754823040263,-1040.39,0.00021298,2]
[378318013,1754823040273,-460.0,0.00021298,2]
[378318014,1754823040284,-500.0,0.00021298,2]
[378318015,1754823040294,-460.0,0.00021298,2]
[378318016,1754823040304,-228.54481719,0.00021299,2]
[378318017,1754823040313,-914.17926875,0.00021299,2]
[378318018,1754823040323,-452.34271314,0.00021299,2]
[378318019,1754823040334,-358.84241596,0.00021299,2]
[378318020,1754823040345,-1433.93429419,0.00021299,2]
[378318021,1754823040355,-2056.90335468,0.00021299,2]
[378318022,1754823040365,-3656.71707499,0.00021299,2]
[378318023,1754823040374,-769.6409855,0.00021299,2]
[378318024,1754823040385,-3075.48537806,0.00021299,2]
[378318025,1754823040395,-5183.45880435,0.00021354,2]
[378318026,1754823040406,-5713.62042967,0.00021354,2]
[378318027,1754823040415,-335.0,0.0002136,2]
[378318028,1754823040425,-448.13,0.00021416,2]
[378318029,1754823040434,-184.37172482,0.00021447,2]
[378318030,1754823040445,-460.0,0.00021471,2]
[378318031,1754823040454,-460.0,0.00021471,2]
[378318032,1754823040464,-460.0,0.00021471,2]
[378318033,1754823040474,-300.82338762,0.00021471,2]
[378318034,1754823040484,-460.0,0.00021471,2]
[378318035,1754823040493,-460.0,0.00021471,2]
[378318036,1754823040503,-460.0,0.00021471,2]
[378318037,1754823040513,-991.12,0.00021471,2]
[378318038,1754823040522,-460.0,0.00021471,2]
[378318039,1754823040533,-460.0,0.00021471,2]
[378318040,1754823040544,-1000.0,0.00021521,2]
[378318041,1754823040554,-8227.61341872,0.00021523,2]
[378318042,1754823040563,-500.0,0.00021537,2]
[378318043,1754823040573,-151.0,0.00021538,2]
[378318044,1754823040584,-902.52,0.00021547,2]
[378318045,1754823040593,-460.0,0.00021547,2]
[378318046,1754823040603,-460.0,0.00021547,2]
[378318047,1754823040614,-1682.52,0.00021547,2]
[378318048,1754823040623,-175.16684187,0.00021547,2]
[378318049,1754823040633,-460.0,0.00021547,2]
[378318050,1754823040642,-460.0,0.00021547,2]
[378318051,1754823040651,-5449.43,0.00021547,2]
[378318052,1754823040661,-460.0,0.00021547,2]
[378318053,1754823040672,-290.69429266,0.00021547,2]
[378318054,1754823040682,-460.0,0.00021547,2]
[378318055,1754823040693,-151.0,0.00021568,2]
[378318056,1754823040704,-151.0,0.00021569,2]
[378318057,1754823040713,-460.0,0.00021569,2]
[378318058,1754823040723,-460.0,0.00021569,2]
[378318059,1754823040733,-460.0,0.00021569,2]
[378318060,1754823040744,-843.73,0.00021569,2]
[378318061,1754823040754,-151.0,0.00021569,2]
[378318062,1754823040764,-1885.24,0.00021569,2]
[378318063,1754823040774,-460.0,0.00021569,2]
[378318064,1754823040783,-460.0,0.00021569,2]
[378318065,1754823040794,-460.0,0.00021569,2]
[378318066,1754823040806,-665.01,0.00021569,2]
[378318067,1754823040816,-1503.61,0.00021569,2]
[378318068,1754823040825,-460.0,0.00021569,2]
[378318069,1754823040836,-460.0,0.00021569,2]
[378318070,1754823040846,-460.0,0.00021569,2]
[378318071,1754823040857,-460.0,0.00021569,2]
[378318072,1754823040871,-460.0,0.00021569,2]
[378318073,1754823040880,-1701.36,0.00021569,2]
[378318074,1754823040890,-460.0,0.00021569,2]
[378318075,1754823040900,-460.0,0.00021569,2]
[378318076,1754823040910,-460.0,0.00021569,2]
[378318077,1754823040919,-1158.71,0.00021569,2]
[378318078,1754823040929,-460.0,0.00021569,2]
[378318079,1754823040939,-760.4,0.00021569,2]
[378318080,1754823040949,-460.0,0.00021569,2]
[378318081,1754823040958,-751.04,0.00021569,2]
[378318082,1754823040968,-468.9,0.00021569,2]
[378318083,1754823040978,-460.0,0.00021569,2]
[378318084,1754823040987,-460.0,0.00021569,2]
[378318085,1754823040997,-460.0,0.00021569,2]
[378318086,1754823041008,-472.09,0.00021569,2]
[378318087,1754823041018,-460.0,0.00021569,2]
[378318088,1754823041028,-1013.66,0.00021569,2]
[378318089,1754823041039,-572.50117837,0.0002157,2]
[378318090,1754823041049,-460.0,0.0002157,2]
[378318091,1754823041060,-460.0,0.0002157,2]
[378318092,1754823041071,-460.0,0.0002157,2]
[378318093,1754823041083,-460.0,0.0002157,2]
[378318094,1754823041094,-460.0,0.0002157,2]
[378318095,1754823041104,-460.0,0.0002157,2]
[378318096,1754823041115,-460.0,0.0002157,2]
[378318097,1754823041125,-170.51523,0.0002157,2]
[378318098,1754823041136,-170.51523,0.0002157,2]
[378318099,1754823041147,-460.0,0.0002157,2]
[378318100,1754823041157,-460.0,0.0002157,2]
[378318101,1754823041167,-222.03,0.0002157,2]
[378318102,1754823041176,-460.0,0.0002157,2]
[378318103,1754823041186,-177.24,0.0002157,2]
[378318104,1754823041197,-460.0,0.0002157,2]
[378318105,1754823041207,-460.0,0.0002157,2]
[378318106,1754823041217,-460.0,0.0002157,2]
[378318107,1754823041227,-970.74,0.0002157,2]
[378318108,1754823041239,-4237.2,0.0002157,2]
[378318109,1754823041249,-460.0,0.0002157,2]
[378318110,1754823041259,-460.0,0.0002157,2]
[378318111,1754823041270,-460.0,0.0002157,2]
[378318112,1754823041280,-460.0,0.0002157,2]
[378318113,1754823041291,-484.95,0.0002157,2]
[378318114,1754823041300,-970.2,0.0002157,2]
[378318115,1754823041310,-460.0,0.0002157,2]
[378318116,1754823041320,-460.0,0.0002157,2]
[378318117,1754823041331,-460.0,0.0002157,2]
[378318118,1754823041341,-460.0,0.0002157,2]
[378318119,1754823041352,-1504.3,0.0002157,2]
[378318120,1754823041362,-1597.08,0.0002157,2]
[378318121,1754823041372,-460.0,0.00021571,2]
[378318122,1754823041382,-460.0,0.00021571,2]
[378318123,1754823041392,-460.0,0.00021571,2]
[378318124,1754823041401,-498.19,0.00021571,2]
[378318125,1754823041411,-460.0,0.00021571,2]
[378318126,1754823041420,-460.0,0.00021571,2]
[378318127,1754823041429,-460.0,0.00021571,2]
[378318128,1754823041439,-460.0,0.00021571,2]
[378318129,1754823041448,-270.843383,0.00021571,2]
[378318130,1754823041457,-460.0,0.00021571,2]
[378318131,1754823041466,-460.0,0.00021571,2]
[378318132,1754823041476,-460.0,0.00021572,2]
[378318133,1754823041485,-460.0,0.00021572,2]
[378318134,1754823041494,-203.8,0.00021572,2]
[378318135,1754823041504,-460.0,0.00021572,2]
[378318136,1754823041513,-460.0,0.00021572,2]
[378318137,1754823041522,-460.0,0.00021572,2]
[378318138,1754823041532,-460.0,0.00021572,2]
[378318139,1754823041541,-212.24,0.00021572,2]
[378318140,1754823041550,-460.0,0.00021572,2]
[378318141,1754823041559,-460.0,0.00021572,2]
[378318142,1754823041569,-466.87750768,0.00021572,2]
[378318143,1754823041579,-460.0,0.00021572,2]
[378318144,1754823041588,-460.0,0.00021572,2]
[378318145,1754823041597,-460.0,0.00021572,2]
[378318146,1754823041607,-411.65396711,0.00021572,2]
[378318147,1754823041616,-463.10931404,0.00021572,2]
[378318148,1754823041625,-460.0,0.00021572,2]
[378318149,1754823041634,-460.0,0.00021572,2]
[378318150,1754823041643,-633.63,0.00021572,2]
[378318151,1754823041652,-1040.39,0.00021572,2]
[378318152,1754823041662,-460.0,0.00021572,2]
[378318153,1754823041671,-500.0,0.00021573,2]
[378318154,1754823041680,-158.82051096,0.00021573,2]
[378318155,1754823041690,-500.0,0.00021573,2]
[378318156,1754823041699,-500.0,0.00021573,2]
[378318157,1754823041708,-500.0,0.00021573,2]
[378318158,1754823041716,-500.0,0.00021573,2]
[378318159,1754823041726,-500.0,0.00021573,2]
[378318160,1754823041734,-500.0,0.00021573,2]
[378318161,1754823041744,-500.0,0.00021573,2]
[378318162,1754823041753,-500.0,0.00021573,2]
[378318163,1754823041768,-500.0,0.00021573,2]
[378318164,1754823041777,-500.0,0.00021573,2]
[378318165,1754823041786,-500.0,0.00021573,2]
[378318166,1754823041797,-500.0,0.00021573,2]
[378318167,1754823041806,-501.12103853,0.00021573,2]
[378318168,1754823041815,-507.36370511,0.00021573,2]
[378318169,1754823041925,-321.84661062,0.00021573,2]
[378318170,1754823041935,-500.0,0.00021573,2]
[378318171,1754823041945,-500.0,0.00021573,2]
[378318172,1754823041955,-500.95038439,0.00021573,2]
[378318173,1754823041965,-500.0,0.00021573,2]
[378318174,1754823041974,-500.0,0.00021573,2]
[378318175,1754823041983,-500.0,0.00021573,2]
[378318176,1754823041993,-501.86463235,0.00021573,2]
[378318177,1754823042002,-500.0,0.00021573,2]
[378318178,1754823042011,-315.3618064,0.00021573,2]
[378318179,1754823042020,-505.4876256,0.00021573,2]
[378318180,1754823042030,-500.0,0.00021573,2]
[378318181,1754823042040,-1196.43805234,0.00021596,2]
[378318182,1754823042050,-524.07916061,0.0002162,2]
[378318183,1754823042059,-1000.0,0.00021621,2]
[378318184,1754823042068,-501.43765191,0.00021621,2]
[378318185,1754823042080,-1000.0,0.00021621,2]
[378318186,1754823042089,-1000.0,0.00021621,2]
[378318187,1754823042099,-1000.0,0.00021621,2]
[378318188,1754823042108,-1000.0,0.00021621,2]
[378318189,1754823042118,-1000.0,0.00021621,2]
[378318190,1754823042127,-1000.0,0.00021621,2]
[378318191,1754823042136,-1000.0,0.00021621,2]
[378318192,1754823042146,-370.55393341,0.00021621,2]
[378318193,1754823042155,-1000.0,0.00021621,2]
[378318194,1754823042165,-1000.0,0.00021621,2]
[378318195,1754823042175,-1000.0,0.00021621,2]
[378318196,1754823042184,-1000.0,0.00021621,2]
[378318197,1754823042194,-1000.0,0.00021621,2]
[378318198,1754823042204,-1000.0,0.00021621,2]
[378318199,1754823042214,-500.0,0.00021621,2]
[378318200,1754823042223,-1000.0,0.00021621,2]
[378318201,1754823042233,-1000.0,0.00021621,2]
[378318202,1754823042242,-6306.53855808,0.00021655,2]
[378318203,1754823042252,-170.51523,0.00021663,2]
[378318204,1754823042262,-170.51523,0.00021663,2]
[378318205,1754823042271,-460.0,0.00021745,2]
[378318206,1754823042281,-460.0,0.00021745,2]
[378318207,1754823042291,-460.0,0.00021745,2]
[378318208,1754823042300,-460.0,0.00021745,2]
[378318209,1754823042309,-991.12,0.00021745,2]
[378318210,1754823042319,-460.0,0.00021745,2]
[378318211,1754823042329,-460.0,0.00021745,2]
[378318212,1754823042339,-151.0,0.000218,4]
[378318213,1754823042348,-501.91071121,0.00021821,2]
[378318214,1754823042358,-250.0,0.00021821,2]
[378318215,1754823042367,-610.43591832,0.00021821,2]
[378318216,1754823042376,-1000.0,0.00021821,2]
[378318217,1754823042386,-902.52,0.00021821,2]
[378318218,1754823042395,-460.0,0.00021821,2]
[378318219,1754823042405,-1682.52,0.00021821,2]
[378318220,1754823042414,-460.0,0.00021821,2]
[378318221,1754823042425,-5449.43,0.00021821,2]
[378318222,1754823042435,-460.0,0.00021821,2]
[378318223,1754823042444,-460.0,0.00021821,2]
[378318224,1754823042454,-198.0,0.00021842,2]
[378318225,1754823042463,-460.0,0.00021843,2]
[378318226,1754823042473,-460.0,0.00021843,2]
[378318227,1754823042483,-460.0,0.00021843,2]
[378318228,1754823042492,-843.73,0.00021843,2]
[378318229,1754823042501,-1885.24,0.00021843,2]
[378318230,1754823042511,-460.0,0.00021843,2]
[378318231,1754823042522,-460.0,0.00021843,2]
[378318232,1754823042532,-460.0,0.00021843,2]
[378318233,1754823042542,-665.01,0.00021843,2]
[378318234,1754823042552,-1503.61,0.00021843,2]
[378318235,1754823042561,-460.0,0.00021843,2]
[378318236,1754823042571,-460.0,0.00021843,2]
[378318237,1754823042583,-460.0,0.00021843,2]
[378318238,1754823042592,-460.0,0.00021843,2]
[378318239,1754823042601,-1701.36,0.00021843,2]
[378318240,1754823042611,-460.0,0.00021843,2]
[378318241,1754823042620,-460.0,0.00021843,2]
[378318242,1754823042630,-460.0,0.00021843,2]
[378318243,1754823042639,-1158.71,0.00021843,2]
[378318244,1754823042649,-460.0,0.00021843,2]
[378318245,1754823042658,-760.4,0.00021843,2]
[378318246,1754823042668,-488.47123411,0.00021843,2]
[378318247,1754823042676,-751.04,0.00021843,2]
[378318248,1754823042686,-157.62,0.00021843,2]
[378318249,1754823042697,-460.0,0.00021843,2]
[378318250,1754823042707,-460.0,0.00021843,2]
[378318251,1754823042716,-472.09,0.00021843,2]
[378318252,1754823042726,-460.0,0.00021843,2]
[378318253,1754823042736,-1013.66,0.00021843,2]
[378318254,1754823042746,-784.7,0.00021843,2]
[378318255,1754823042756,-460.0,0.00021844,2]
[378318256,1754823042767,-460.0,0.00021844,2]
[378318257,1754823042777,-460.0,0.00021844,2]
[378318258,1754823042787,-460.0,0.00021844,2]
[378318259,1754823042797,-460.0,0.00021844,2]
[378318260,1754823042806,-376.16,0.00021844,2]
[378318261,1754823042817,-460.0,0.00021844,2]
[378318263,1754823042827,-201.66315626,0.00021844,2]
[378318264,1754823042841,-460.0,0.00021844,2]
[378318266,1754823042851,-460.0,0.00021844,2]
[378318267,1754823042860,-397.73,0.00021844,2]
[378318268,1754823042873,-453.0616643,0.00021844,2]
[378318269,1754823042883,-970.74,0.00021844,2]
[378318270,1754823042893,-4237.2,0.00021844,2]
[378318271,1754823042904,-460.0,0.00021844,2]
[378318272,1754823042914,-460.0,0.00021844,2]
[378318273,1754823042925,-460.0,0.00021844,2]
[378318274,1754823042935,-267.42212361,0.00021844,2]
[378318276,1754823042945,-484.95,0.00021844,2]
[378318277,1754823042955,-970.2,0.00021844,2]
[378318279,1754823042965,-460.0,0.00021844,2]
[378318280,1754823042974,-460.0,0.00021844,2]
[378318281,1754823042986,-460.0,0.00021844,2]
[378318282,1754823042997,-460.0,0.00021844,2]
[378318283,1754823043007,-1504.3,0.00021844,2]
[378318284,1754823043020,-1597.08,0.00021844,2]
[378318285,1754823043030,-460.0,0.00021845,2]
[378318286,1754823043041,-460.0,0.00021845,2]
[378318287,1754823043050,-170.51523,0.00021845,2]
[378318288,1754823043060,-170.51523,0.00021845,2]
[378318289,1754823043069,-498.19,0.00021845,2]
[378318290,1754823043079,-460.0,0.00021845,2]
[378318291,1754823043094,-460.0,0.00021845,2]
[378318292,1754823043105,-460.0,0.00021845,2]
[378318293,1754823043115,-460.0,0.00021845,2]
[378318294,1754823043125,-460.0,0.00021845,2]
[378318295,1754823043135,-460.0,0.00021845,2]
[378318296,1754823043145,-563.42,0.00021846,2]
[378318297,1754823043154,-460.0,0.00021846,2]
[378318298,1754823043164,-187.2,0.00021846,2]
[378318299,1754823043174,-460.0,0.00021846,2]
[378318300,1754823043186,-460.0,0.00021846,2]
[378318301,1754823043196,-460.0,0.00021846,2]
[378318302,1754823043207,-460.0,0.00021846,2]
[378318303,1754823043216,-633.63,0.00021846,2]
[378318304,1754823043225,-1040.39,0.00021846,2]
[378318305,1754823043236,-460.0,0.00021846,2]
[378318307,1754823043245,-501.34952174,0.00021873,2]
[378318308,1754823043254,-500.0,0.00021873,2]
[378318310,1754823043265,-150.56519698,0.00021873,2]
[378318311,1754823043274,-170.51523,0.00021873,2]
[378318312,1754823043283,-170.51523,0.00021873,2]
[378318313,1754823043293,-500.0,0.00021917,2]
[378318314,1754823043302,-5068.15,0.00021917,2]
[378318315,1754823043311,-150.0,0.00021918,2]
[378318316,1754823043321,-200.98986577,0.00021918,2]
[378318318,1754823043334,-1196.43805234,0.00021944,2]
[378318319,1754823043343,-800.0,0.00021954,2]
[378318321,1754823043353,-200.0,0.00021968,15]
[378318322,1754823043363,-300.0,0.00021968,15]
[378318323,1754823043372,-500.0,0.00021973,2]
[378318324,1754823043382,-151.0,0.00022,2]
[378318325,1754823043392,-1632.35,0.00022,2]
[378318326,1754823043401,-192.0,0.00022,2]
[378318327,1754823043410,-460.0,0.00022019,2]
[378318328,1754823043419,-460.0,0.00022019,2]
[378318329,1754823043429,-211.56252648,0.00022019,2]
[378318330,1754823043438,-460.0,0.00022019,2]
[378318331,1754823043448,-991.12,0.00022019,2]
[378318333,1754823043457,-460.0,0.00022019,2]
[378318335,1754823043467,-1500.0,0.00022068,2]
[378318336,1754823043476,-902.52,0.00022095,2]
[378318337,1754823043486,-460.0,0.00022095,2]
[378318338,1754823043495,-1682.52,0.00022095,2]
[378318339,1754823043505,-460.0,0.00022095,2]
[378318340,1754823043515,-5449.43,0.00022095,2]
[378318341,1754823043524,-460.0,0.00022095,2]
[378318342,1754823043534,-460.0,0.00022095,2]
[378318343,1754823043544,-151.0,0.000221,10]
[378318344,1754823043554,-500.0,0.00022109,2]
[378318345,1754823043563,-170.51523,0.0002211,7]
[378318346,1754823043573,-170.51523,0.0002211,7]
[378318347,1754823043585,-500.0,0.0002211,2]
[378318348,1754823043594,-500.0,0.0002211,2]
[378318349,1754823043604,-500.0,0.0002211,2]
[378318350,1754823043613,-500.0,0.0002211,2]
[378318351,1754823043622,-500.0,0.0002211,2]
[378318352,1754823043632,-500.0,0.0002211,2]
[378318353,1754823043641,-500.0,0.0002211,2]
[378318354,1754823043651,-500.0,0.0002211,2]
[378318355,1754823043660,-189.20360481,0.0002211,2]
[378318356,1754823043670,-784.7,0.0002211,2]
[378318357,1754823043679,-784.7,0.0002211,2]
[378318358,1754823043688,-784.7,0.0002211,2]
[378318359,1754823043697,-784.7,0.0002211,2]
[378318360,1754823043706,-784.7,0.0002211,2]
[378318361,1754823043715,-1873.23232646,0.00022111,2]
[378318362,1754823043724,-170.51523,0.00022111,7]
[378318363,1754823043734,-170.51523,0.00022111,7]
[378318364,1754823043743,-460.0,0.00022117,2]
[378318365,1754823043753,-460.0,0.00022117,2]
[378318366,1754823043763,-460.0,0.00022117,2]
[378318367,1754823043772,-843.73,0.00022117,2]
[378318368,1754823043781,-1885.24,0.00022117,2]
[378318369,1754823043791,-460.0,0.00022117,2]
[378318370,1754823043800,-460.0,0.00022117,2]
[378318371,1754823043809,-460.0,0.00022117,2]
[378318372,1754823043819,-665.01,0.00022117,2]
[378318373,1754823043829,-1503.61,0.00022117,2]
[378318374,1754823043840,-460.0,0.00022117,2]
[378318375,1754823043849,-460.0,0.00022117,2]
[378318376,1754823043859,-252.05,0.00022117,2]
[378318377,1754823043871,-1701.36,0.00022117,2]
[378318378,1754823043880,-460.0,0.00022117,2]
[378318379,1754823043890,-460.0,0.00022117,2]
[378318380,1754823043899,-460.0,0.00022117,2]
[378318381,1754823043908,-1158.71,0.00022117,2]
[378318382,1754823043917,-460.0,0.00022117,2]
[378318383,1754823043928,-760.4,0.00022117,2]
[378318384,1754823043938,-751.04,0.00022117,2]
[378318385,1754823043947,-460.0,0.00022117,2]
[378318386,1754823043957,-460.0,0.00022117,2]
[378318387,1754823043966,-472.09,0.00022117,2]
[378318388,1754823043975,-460.0,0.00022117,2]
[378318389,1754823043985,-1013.66,0.00022117,2]
[378318390,1754823043994,-460.0,0.00022118,2]
[378318391,1754823044003,-460.0,0.00022118,2]
[378318392,1754823044012,-460.0,0.00022118,2]
[378318393,1754823044022,-460.0,0.00022118,2]
[378318394,1754823044031,-460.0,0.00022118,2]
[378318395,1754823044041,-233.78,0.00022118,2]
[378318396,1754823044050,-460.0,0.00022118,2]
[378318397,1754823044059,-460.0,0.00022118,2]
[378318398,1754823044069,-970.74,0.00022118,2]
[378318399,1754823044078,-4237.2,0.00022118,2]
[378318400,1754823044089,-460.0,0.00022118,2]
[378318401,1754823044098,-460.0,0.00022118,2]
[378318402,1754823044108,-460.0,0.00022118,2]
[378318403,1754823044118,-484.95,0.00022118,2]
[378318404,1754823044127,-970.2,0.00022118,2]
[378318405,1754823044137,-460.0,0.00022118,2]
[378318406,1754823044146,-608.57,0.00022118,2]
[378318407,1754823044155,-460.0,0.00022118,2]
[378318408,1754823044165,-1504.3,0.00022118,2]
[378318409,1754823044174,-1597.08,0.00022118,2]
[378318410,1754823044183,-460.0,0.00022119,2]
[378318411,1754823044193,-170.51523,0.00022119,7]
[378318412,1754823044202,-170.51523,0.00022119,7]
[378318413,1754823044211,-498.19,0.00022119,2]
[378318414,1754823044220,-460.0,0.00022119,2]
[378318415,1754823044229,-483.87098236,0.00022119,2]
[378318416,1754823044238,-335.97,0.00022119,2]
[378318417,1754823044247,-460.0,0.00022119,2]
[378318418,1754823044257,-460.0,0.00022119,2]
[378318419,1754823044266,-460.0,0.0002212,2]
[378318420,1754823044276,-460.0,0.0002212,2]
[378318421,1754823044285,-460.0,0.0002212,2]
[378318422,1754823044295,-460.0,0.0002212,2]
[378318423,1754823044304,-460.0,0.0002212,2]
[378318424,1754823044313,-633.63,0.0002212,2]
[378318425,1754823044322,-1040.39,0.0002212,2]
[378318426,1754823044425,-460.0,0.0002212,2]
[378318427,1754823044435,-1000.0,0.00022121,2]
[378318428,1754823044445,-1000.0,0.00022121,2]
[378318429,1754823044454,-551.42356798,0.00022121,2]
[378318430,1754823044463,-1000.0,0.00022121,2]
[378318431,1754823044473,-1000.0,0.00022121,2]
[378318432,1754823044481,-1000.0,0.00022121,2]
[378318433,1754823044489,-1000.0,0.00022121,2]
[378318434,1754823044497,-506.57148679,0.00022121,2]